[Event "Live Chess"]
[Site "Chess.com"]
[Date "2024.06.02"]
[Round "-"]
[White "Bradfield133"]
[Black "seasidecastle27"]
[Result "0-1"]
[WhiteElo "1869"]
[BlackElo "1930"]
[TimeControl "300"]
[EndTime "3:05:00 PDT"]
[Termination "seasidecastle27 won by resignation"]

1. c4 {[%clk 0:04:58]} 1... e6 {[%clk 0:04:58.4]} 2. e4 {[%clk 0:04:56]} 2... d5
{[%clk 0:04:56.8]} 3. exd5 {[%clk 0:04:55.9]} 3... exd5 {[%clk 0:04:55.7]} 4. d4
{[%clk 0:04:55.8]} 4... Nf6 {[%clk 0:04:54.4]} 5. Nc3 {[%clk 0:04:54.9]} 5...
Be7 {[%clk 0:04:53]} 6. Nf3 {[%clk 0:04:52.8]} 6... O-O {[%clk 0:04:51.7]} 7.
Bd3 {[%clk 0:04:51.6]} 7... Bg4 {[%clk 0:04:47.4]} 8. Be3 {[%clk 0:04:35.3]}
8... dxc4 {[%clk 0:04:39]} 9. Bxc4 {[%clk 0:04:33.7]} 9... Nbd7 {[%clk
0:04:38.1]} 10. O-O {[%clk 0:04:31.1]} 10... Nb6 {[%clk 0:04:36.6]} 11. Bb3
{[%clk 0:04:30.2]} 11... c6 {[%clk 0:04:30.8]} 12. h3 {[%clk 0:04:28.2]} 12...
Bh5 {[%clk 0:04:28.9]} 13. g4 {[%clk 0:04:27]} 13... Bg6 {[%clk 0:04:26.5]} 14.
Ne5 {[%clk 0:04:24.9]} 14... Nfd5 {[%clk 0:04:16.7]} 15. Qf3 {[%clk 0:03:58.9]}
15... Bf6 {[%clk 0:03:39.9]} 16. Rad1 {[%clk 0:03:50.6]} 16... a5 {[%clk
0:03:15.7]} 17. a4 {[%clk 0:03:44.6]} 17... Nxc3 {[%clk 0:02:57.9]} 18. bxc3
{[%clk 0:03:42.9]} 18... Nd5 {[%clk 0:02:56.9]} 19. Bd2 {[%clk 0:03:17.7]} 19...
Qd6 {[%clk 0:02:25.1]} 20. Nc4 {[%clk 0:03:12.5]} 20... Qd7 {[%clk 0:02:12.6]}
21. Nxa5 {[%clk 0:02:59.1]} 21... Rxa5 {[%clk 0:02:07.5]} 22. c4 {[%clk
0:02:58.3]} 22... Raa8 {[%clk 0:01:31.9]} 23. cxd5 {[%clk 0:02:56]} 23... cxd5
{[%clk 0:01:29.6]} 24. Bxd5 {[%clk 0:02:45.2]} 24... Rxa4 {[%clk 0:01:24.3]} 25.
Bxb7 {[%clk 0:02:32.6]} 25... Rxd4 {[%clk 0:01:22.1]} 26. Be3 {[%clk 0:02:25.8]}
26... Rxd1 {[%clk 0:01:18]} 27. Rxd1 {[%clk 0:02:25.7]} 27... Qa4 {[%clk
0:01:06.7]} 28. Bc5 {[%clk 0:02:12.9]} 28... Rb8 {[%clk 0:00:56.5]} 29. Bd6
{[%clk 0:01:52.3]} 29... Rxb7 {[%clk 0:00:52.7]} 30. Qxb7 {[%clk 0:01:40.7]}
30... Qxd1+ {[%clk 0:00:50]} 31. Kg2 {[%clk 0:01:39.7]} 31... Qxd6 {[%clk
0:00:46.9]} 32. Qc8+ {[%clk 0:01:37.6]} 32... Bd8 {[%clk 0:00:43.3]} 0-1

[Event "Live Chess"]
[Site "Chess.com"]
[Date "2024.06.02"]
[Round "-"]
[White "peteopeteo"]
[Black "elis06"]
[Result "0-1"]
[WhiteElo "1547"]
[BlackElo "2292"]
[TimeControl "300"]
[EndTime "3:05:23 PDT"]
[Termination "elis06 won by resignation"]

1. e4 {[%clk 0:04:59.4]} 1... c6 {[%clk 0:04:58.9]} 2. Nc3 {[%clk 0:04:51.4]}
2... d5 {[%clk 0:04:58.1]} 3. Nf3 {[%clk 0:04:50.9]} 3... dxe4 {[%clk
0:04:56.1]} 4. Nxe4 {[%clk 0:04:50.8]} 4... Nd7 {[%clk 0:04:55.6]} 5. Bc4 {[%clk
0:04:49.3]} 5... e6 {[%clk 0:04:50.6]} 6. Qe2 {[%clk 0:04:44.9]} 6... Be7 {[%clk
0:04:44.8]} 7. d3 {[%clk 0:04:37.5]} 7... Ngf6 {[%clk 0:04:43.5]} 8. Nfg5 {[%clk
0:04:16.2]} 8... Ne5 {[%clk 0:04:27.9]} 9. Bb3 {[%clk 0:04:09.6]} 9... Nxe4
{[%clk 0:04:21.9]} 10. Nxe4 {[%clk 0:04:06.7]} 10... O-O {[%clk 0:04:15.6]} 11.
f4 {[%clk 0:04:05.9]} 11... Ng6 {[%clk 0:04:13]} 12. O-O {[%clk 0:04:00.3]}
12... a5 {[%clk 0:04:11.7]} 13. a4 {[%clk 0:03:55.7]} 13... b6 {[%clk 0:04:05]}
14. c3 {[%clk 0:03:35.2]} 14... Bb7 {[%clk 0:04:01]} 15. d4 {[%clk 0:03:31]}
15... c5 {[%clk 0:03:58.1]} 16. Kh1 {[%clk 0:03:06.1]} 16... cxd4 {[%clk
0:03:54.3]} 17. Rd1 {[%clk 0:03:05.7]} 17... Qc7 {[%clk 0:03:48]} 18. Rxd4
{[%clk 0:02:54.6]} 18... Rad8 {[%clk 0:03:41.7]} 19. Bc2 {[%clk 0:02:45.1]}
19... Rxd4 {[%clk 0:03:28]} 20. cxd4 {[%clk 0:02:45]} 20... Rd8 {[%clk
0:03:26.9]} 21. Be3 {[%clk 0:02:40.9]} 21... Nxf4 {[%clk 0:03:15.6]} 22. Bxf4
{[%clk 0:02:40.8]} 22... Qxf4 {[%clk 0:03:14.7]} 23. Qd3 {[%clk 0:02:37]} 23...
Bxe4 {[%clk 0:03:12.9]} 24. Qxe4 {[%clk 0:02:36.9]} 24... Qxe4 {[%clk
0:03:12.1]} 25. Bxe4 {[%clk 0:02:36.8]} 25... Rxd4 {[%clk 0:03:11.4]} 26. Rc1
{[%clk 0:02:31.8]} 26... Rxe4 {[%clk 0:03:10]} 27. Rc8+ {[%clk 0:02:30.3]} 27...
Bf8 {[%clk 0:03:09.5]} 0-1

[Event "Live Chess"]
[Site "Chess.com"]
[Date "2024.06.02"]
[Round "-"]
[White "missedJariChance"]
[Black "AlanBstard10"]
[Result "1/2-1/2"]
[WhiteElo "1356"]
[BlackElo "1226"]
[TimeControl "300"]
[EndTime "3:05:24 PDT"]
[Termination "Game drawn by repetition"]

1. b3 {[%clk 0:04:57.2]} 1... Nf6 {[%clk 0:04:58.5]} 2. Bb2 {[%clk 0:04:55.9]}
2... g6 {[%clk 0:04:57.5]} 3. Nf3 {[%clk 0:04:54.2]} 3... Bg7 {[%clk 0:04:56.4]}
4. e3 {[%clk 0:04:53.1]} 4... O-O {[%clk 0:04:55.3]} 5. Be2 {[%clk 0:04:51.8]}
5... d6 {[%clk 0:04:54.9]} 6. O-O {[%clk 0:04:50.3]} 6... Bd7 {[%clk 0:04:54.5]}
7. c4 {[%clk 0:04:48.5]} 7... Nc6 {[%clk 0:04:54]} 8. Nc3 {[%clk 0:04:47.2]}
8... e5 {[%clk 0:04:51.5]} 9. d4 {[%clk 0:04:41.5]} 9... exd4 {[%clk 0:04:49.4]}
10. exd4 {[%clk 0:04:40.2]} 10... Re8 {[%clk 0:04:47.7]} 11. Re1 {[%clk
0:04:37.9]} 11... Bg4 {[%clk 0:04:44.4]} 12. d5 {[%clk 0:04:24.6]} 12... Ne5
{[%clk 0:04:40.8]} 13. Nxe5 {[%clk 0:04:11.6]} 13... Bxe2 {[%clk 0:04:39.3]} 14.
Rxe2 {[%clk 0:04:02.8]} 14... Rxe5 {[%clk 0:04:38.9]} 15. Nb5 {[%clk 0:03:58]}
15... Rxe2 {[%clk 0:04:36.9]} 16. Qxe2 {[%clk 0:03:56.7]} 16... a6 {[%clk
0:04:32.5]} 17. Nd4 {[%clk 0:03:48.6]} 17... Nd7 {[%clk 0:04:26.2]} 18. Re1
{[%clk 0:03:43.4]} 18... Ne5 {[%clk 0:04:23.9]} 19. h3 {[%clk 0:03:34.8]} 19...
h6 {[%clk 0:04:01.2]} 20. Nf3 {[%clk 0:03:19.3]} 20... Nxf3+ {[%clk 0:03:59]}
21. gxf3 {[%clk 0:03:16.9]} 21... Bxb2 {[%clk 0:03:47.7]} 22. Qxb2 {[%clk
0:03:15.1]} 22... Qg5+ {[%clk 0:03:40.3]} 23. Kh2 {[%clk 0:03:12.1]} 23... Qf4+
{[%clk 0:03:36.1]} 24. Kg2 {[%clk 0:03:10.5]} 24... Qg5+ {[%clk 0:03:33.4]} 25.
Kh2 {[%clk 0:03:07.7]} 25... Qf4+ {[%clk 0:03:30.8]} 26. Kg2 {[%clk 0:03:06.2]}
26... Qg5+ {[%clk 0:03:17.5]} 27. Kh2 {[%clk 0:03:04.4]} 1/2-1/2

[Event "Live Chess"]
[Site "Chess.com"]
[Date "2024.06.02"]
[Round "-"]
[White "yarek"]
[Black "KeithArkell"]
[Result "0-1"]
[WhiteElo "1757"]
[BlackElo "2417"]
[TimeControl "300"]
[EndTime "3:05:27 PDT"]
[Termination "KeithArkell won on time"]

1. e4 {[%clk 0:04:56.6]} 1... c6 {[%clk 0:04:59.3]} 2. d4 {[%clk 0:04:54.7]}
2... d5 {[%clk 0:04:58.6]} 3. exd5 {[%clk 0:04:52.6]} 3... cxd5 {[%clk 0:04:58]}
4. Bd3 {[%clk 0:04:51.2]} 4... Nf6 {[%clk 0:04:57.6]} 5. c3 {[%clk 0:04:50.2]}
5... Nc6 {[%clk 0:04:57.3]} 6. h3 {[%clk 0:04:49.1]} 6... g6 {[%clk 0:04:56.3]}
7. Nf3 {[%clk 0:04:48]} 7... Bf5 {[%clk 0:04:55.5]} 8. Bxf5 {[%clk 0:04:42.1]}
8... gxf5 {[%clk 0:04:54.7]} 9. Bf4 {[%clk 0:04:39.5]} 9... e6 {[%clk
0:04:53.6]} 10. Ne5 {[%clk 0:04:24.5]} 10... Rg8 {[%clk 0:04:48.9]} 11. O-O
{[%clk 0:04:17.6]} 11... Bd6 {[%clk 0:04:46.3]} 12. Qa4 {[%clk 0:03:55]} 12...
Qc7 {[%clk 0:04:44.8]} 13. Nxc6 {[%clk 0:03:46.6]} 13... bxc6 {[%clk 0:04:44.7]}
14. Bxd6 {[%clk 0:03:44.5]} 14... Qxd6 {[%clk 0:04:44]} 15. Nd2 {[%clk
0:03:32.3]} 15... Kf8 {[%clk 0:04:43]} 16. Nf3 {[%clk 0:03:24.8]} 16... Kg7
{[%clk 0:04:41.9]} 17. Ne5 {[%clk 0:03:21.3]} 17... c5 {[%clk 0:04:40.2]} 18.
Qd1 {[%clk 0:03:13.7]} 18... Raf8 {[%clk 0:04:36.5]} 19. f4 {[%clk 0:03:08.1]}
19... Kh8 {[%clk 0:04:34.8]} 20. Qf3 {[%clk 0:02:59.9]} 20... Rg7 {[%clk
0:04:33.8]} 21. Rf2 {[%clk 0:02:46.6]} 21... cxd4 {[%clk 0:04:29.9]} 22. cxd4
{[%clk 0:02:44.7]} 22... Ne4 {[%clk 0:04:29.1]} 23. Rc2 {[%clk 0:02:38.6]} 23...
f6 {[%clk 0:04:27.2]} 24. Nd3 {[%clk 0:02:29.8]} 24... Rfg8 {[%clk 0:04:23.9]}
25. Rac1 {[%clk 0:02:27.4]} 25... Rg3 {[%clk 0:04:22.4]} 26. Qh5 {[%clk
0:02:21.9]} 26... Qf8 {[%clk 0:03:27.2]} 27. Ne1 {[%clk 0:02:01.4]} 27... Qg7
{[%clk 0:02:59.2]} 28. Re2 {[%clk 0:01:19.5]} 28... Qg6 {[%clk 0:02:40]} 29.
Qxg6 {[%clk 0:01:15.2]} 29... R3xg6 {[%clk 0:02:38.3]} 30. Rc7 {[%clk
0:01:10.9]} 30... R6g7 {[%clk 0:02:21.5]} 31. Rec2 {[%clk 0:01:06.6]} 31... h5
{[%clk 0:02:06.9]} 32. b4 {[%clk 0:00:50.8]} 32... a6 {[%clk 0:02:01.9]} 33. a4
{[%clk 0:00:48.6]} 33... Rxc7 {[%clk 0:01:59.9]} 34. Rxc7 {[%clk 0:00:46.9]}
34... Rb8 {[%clk 0:01:59.5]} 35. b5 {[%clk 0:00:28.4]} 35... axb5 {[%clk
0:01:58.4]} 36. axb5 {[%clk 0:00:23]} 36... Rxb5 {[%clk 0:01:57.3]} 37. Rc6
{[%clk 0:00:21.8]} 37... Rb1 {[%clk 0:01:49.9]} 38. Kf1 {[%clk 0:00:19.8]} 38...
Nd2+ {[%clk 0:01:44.9]} 39. Ke2 {[%clk 0:00:18.9]} 39... Nb3 {[%clk 0:01:44.5]}
40. Rc7 {[%clk 0:00:08.3]} 40... Nxd4+ {[%clk 0:01:42.6]} 41. Kd3 {[%clk
0:00:03]} 41... Rxe1 {[%clk 0:01:41]} 42. Kxd4 {[%clk 0:00:01.5]} 42... Re4+
{[%clk 0:01:39.1]} 0-1

[Event "Live Chess"]
[Site "Chess.com"]
[Date "2024.06.02"]
[Round "-"]
[White "Vladyslav2008"]
[Black "MagnersCarlsberg2870"]
[Result "1-0"]
[WhiteElo "2270"]
[BlackElo "1789"]
[TimeControl "300"]
[EndTime "3:05:50 PDT"]
[Termination "Vladyslav2008 won by resignation"]

1. d4 {[%clk 0:04:58.4]} 1... Nf6 {[%clk 0:04:58.5]} 2. Nf3 {[%clk 0:04:56.6]}
2... b6 {[%clk 0:04:57]} 3. c4 {[%clk 0:04:54.6]} 3... Bb7 {[%clk 0:04:55.2]} 4.
g3 {[%clk 0:04:52.4]} 4... e6 {[%clk 0:04:45]} 5. Bg2 {[%clk 0:04:50.3]} 5...
Bb4+ {[%clk 0:04:43.9]} 6. Nbd2 {[%clk 0:04:48.2]} 6... O-O {[%clk 0:04:36.9]}
7. O-O {[%clk 0:04:46.2]} 7... d6 {[%clk 0:04:30.3]} 8. Nb1 {[%clk 0:04:27.5]}
8... d5 {[%clk 0:04:20.6]} 9. a3 {[%clk 0:04:25.7]} 9... Be7 {[%clk 0:04:19]}
10. Qc2 {[%clk 0:04:15.7]} 10... Nbd7 {[%clk 0:04:14.2]} 11. cxd5 {[%clk
0:04:12.5]} 11... exd5 {[%clk 0:04:06.6]} 12. b4 {[%clk 0:04:05.8]} 12... Ne4
{[%clk 0:04:04.1]} 13. Nc3 {[%clk 0:04:02.4]} 13... f5 {[%clk 0:04:02.4]} 14.
Bf4 {[%clk 0:03:59.7]} 14... Bd6 {[%clk 0:03:59.5]} 15. Ne5 {[%clk 0:03:55]}
15... g5 {[%clk 0:03:54.9]} 16. Nxd7 {[%clk 0:03:44.2]} 16... gxf4 {[%clk
0:03:35.3]} 17. Nxf8 {[%clk 0:03:42.6]} 17... Qxf8 {[%clk 0:03:34.2]} 18. Qb3
{[%clk 0:03:37.7]} 18... Nd2 {[%clk 0:03:28.2]} 19. Bxd5+ {[%clk 0:03:35.1]}
19... Kh8 {[%clk 0:03:20.7]} 20. Qa2 {[%clk 0:03:32.7]} 20... Bxd5 {[%clk
0:03:16.1]} 21. Qxd2 {[%clk 0:03:31.2]} 21... Bb7 {[%clk 0:03:00.5]} 22. Nb5
{[%clk 0:03:27.1]} 22... Qg7 {[%clk 0:02:49.2]} 23. Nxd6 {[%clk 0:03:25.6]}
23... cxd6 {[%clk 0:02:48]} 24. Qxf4 {[%clk 0:03:24.3]} 24... Be4 {[%clk
0:02:38.1]} 25. f3 {[%clk 0:03:04.5]} 25... Qxd4+ {[%clk 0:02:35.7]} 26. e3
{[%clk 0:03:03.6]} 1-0

[Event "Live Chess"]
[Site "Chess.com"]
[Date "2024.06.02"]
[Round "-"]
[White "GoldsmanB"]
[Black "Thebigsqueeze"]
[Result "0-1"]
[WhiteElo "1102"]
[BlackElo "2269"]
[TimeControl "300"]
[EndTime "3:05:50 PDT"]
[Termination "Thebigsqueeze won by resignation"]

1. d4 {[%clk 0:04:57.8]} 1... Nf6 {[%clk 0:04:58.2]} 2. c4 {[%clk 0:04:55.4]}
2... c5 {[%clk 0:04:56.5]} 3. d5 {[%clk 0:04:52.9]} 3... b5 {[%clk 0:04:54.6]}
4. cxb5 {[%clk 0:04:50.1]} 4... a6 {[%clk 0:04:53.7]} 5. bxa6 {[%clk 0:04:49]}
5... d6 {[%clk 0:04:50.2]} 6. Nc3 {[%clk 0:04:44.3]} 6... g6 {[%clk 0:04:49.3]}
7. e4 {[%clk 0:04:42.9]} 7... Bg7 {[%clk 0:04:48.8]} 8. f3 {[%clk 0:04:40.8]}
8... O-O {[%clk 0:04:48.3]} 9. Bg5 {[%clk 0:04:38.5]} 9... Nxa6 {[%clk
0:04:45.2]} 10. Bd3 {[%clk 0:04:30.8]} 10... Nc7 {[%clk 0:04:44.3]} 11. Nge2
{[%clk 0:04:29.1]} 11... Ba6 {[%clk 0:04:43.7]} 12. Bxa6 {[%clk 0:04:26.4]}
12... Rxa6 {[%clk 0:04:41.9]} 13. O-O {[%clk 0:04:25.7]} 13... Qb8 {[%clk
0:04:39.6]} 14. b3 {[%clk 0:04:22.9]} 14... Qb4 {[%clk 0:04:32.5]} 15. Bd2
{[%clk 0:04:16.5]} 15... Nd7 {[%clk 0:04:26]} 16. Na4 {[%clk 0:04:13.2]} 16...
Qb7 {[%clk 0:04:14.6]} 17. Rc1 {[%clk 0:04:10.4]} 17... Nb5 {[%clk 0:04:09]} 18.
Nec3 {[%clk 0:04:03.3]} 18... Nd4 {[%clk 0:04:07]} 19. Be3 {[%clk 0:03:55.6]}
19... Rfa8 {[%clk 0:04:03.7]} 20. Bxd4 {[%clk 0:03:53.3]} 20... cxd4 {[%clk
0:03:29.6]} 21. Ne2 {[%clk 0:03:44.3]} 21... Nb6 {[%clk 0:03:23.9]} 22. Nxb6
{[%clk 0:03:39.2]} 22... Qxb6 {[%clk 0:03:22.1]} 23. Qc2 {[%clk 0:03:28.1]}
23... d3+ {[%clk 0:03:18.1]} 0-1

[Event "Live Chess"]
[Site "Chess.com"]
[Date "2024.06.02"]
[Round "-"]
[White "aleksl1977"]
[Black "Ninifu"]
[Result "0-1"]
[WhiteElo "1319"]
[BlackElo "2012"]
[TimeControl "300"]
[EndTime "3:06:10 PDT"]
[Termination "Ninifu won by resignation"]

1. e4 {[%clk 0:04:55.7]} 1... d5 {[%clk 0:04:58.3]} 2. exd5 {[%clk 0:04:54.3]}
2... Nf6 {[%clk 0:04:57.6]} 3. Nf3 {[%clk 0:04:53.2]} 3... Bg4 {[%clk
0:04:54.1]} 4. d4 {[%clk 0:04:52.1]} 4... Qxd5 {[%clk 0:04:52.6]} 5. Be2 {[%clk
0:04:50.8]} 5... Nc6 {[%clk 0:04:51.6]} 6. c4 {[%clk 0:04:50]} 6... Qf5 {[%clk
0:04:50]} 7. O-O {[%clk 0:04:48.4]} 7... O-O-O {[%clk 0:04:49]} 8. d5 {[%clk
0:04:43.9]} 8... e6 {[%clk 0:04:48]} 9. Qd3 {[%clk 0:04:40.5]} 9... Qxd3 {[%clk
0:04:44]} 10. Bxd3 {[%clk 0:04:39.3]} 10... exd5 {[%clk 0:04:42.5]} 11. cxd5
{[%clk 0:04:38.4]} 11... Nxd5 {[%clk 0:04:38.4]} 12. Bg5 {[%clk 0:04:27.4]}
12... f6 {[%clk 0:04:35.9]} 13. Bh4 {[%clk 0:04:26.4]} 13... Bc5 {[%clk
0:04:31.7]} 14. Nbd2 {[%clk 0:04:23.9]} 14... Nf4 {[%clk 0:04:18]} 15. Bc4
{[%clk 0:04:16.1]} 15... Rhe8 {[%clk 0:04:03.2]} 16. Bg3 {[%clk 0:04:12.7]}
16... Ne2+ {[%clk 0:03:53.4]} 17. Kh1 {[%clk 0:03:59.4]} 17... Nxg3+ {[%clk
0:03:48.7]} 18. hxg3 {[%clk 0:03:58]} 18... Nd4 {[%clk 0:03:27.3]} 19. Nxd4
{[%clk 0:03:50.4]} 19... Rxd4 {[%clk 0:03:25.6]} 20. Nf3 {[%clk 0:03:49.1]}
20... Bxf3 {[%clk 0:03:23]} 21. gxf3 {[%clk 0:03:48.1]} 21... Rxc4 {[%clk
0:03:22.3]} 0-1

[Event "Live Chess"]
[Site "Chess.com"]
[Date "2024.06.02"]
[Round "-"]
[White "Larchikov"]
[Black "JanMur7"]
[Result "0-1"]
[WhiteElo "2051"]
[BlackElo "2272"]
[TimeControl "300"]
[EndTime "3:06:40 PDT"]
[Termination "JanMur7 won by resignation"]

1. d4 {[%clk 0:04:55.4]} 1... Nf6 {[%clk 0:04:58.5]} 2. c4 {[%clk 0:04:53.7]}
2... a6 {[%clk 0:04:57.8]} 3. Nc3 {[%clk 0:04:52.8]} 3... b5 {[%clk 0:04:57]} 4.
cxb5 {[%clk 0:04:51.6]} 4... axb5 {[%clk 0:04:56.9]} 5. e4 {[%clk 0:04:50.5]}
5... b4 {[%clk 0:04:55.4]} 6. Nd5 {[%clk 0:04:49.3]} 6... Nxe4 {[%clk
0:04:53.8]} 7. Qf3 {[%clk 0:04:46.7]} 7... c6 {[%clk 0:04:39.7]} 8. Qxe4 {[%clk
0:04:42.8]} 8... cxd5 {[%clk 0:04:37.5]} 9. Qxd5 {[%clk 0:04:42.7]} 9... Nc6
{[%clk 0:04:34.3]} 10. Nf3 {[%clk 0:04:41.4]} 10... e6 {[%clk 0:04:33.4]} 11.
Qh5 {[%clk 0:04:34.8]} 11... d5 {[%clk 0:04:25.1]} 12. Bd3 {[%clk 0:04:32.4]}
12... g6 {[%clk 0:04:17.8]} 13. Qg5 {[%clk 0:04:18.9]} 13... Qxg5 {[%clk
0:04:12]} 14. Bxg5 {[%clk 0:04:18.8]} 14... Bg7 {[%clk 0:04:10]} 15. Be3 {[%clk
0:04:17.9]} 15... Ba6 {[%clk 0:04:06.4]} 16. Kd2 {[%clk 0:04:07.6]} 16... O-O
{[%clk 0:04:02.5]} 17. Rhc1 {[%clk 0:04:06]} 17... Na5 {[%clk 0:03:54.1]} 18.
Ne5 {[%clk 0:03:44.2]} 18... Bxe5 {[%clk 0:03:43.5]} 19. dxe5 {[%clk 0:03:41.6]}
19... Bxd3 {[%clk 0:03:42.5]} 20. Kxd3 {[%clk 0:03:39.6]} 20... Nc4 {[%clk
0:03:42]} 21. Bd4 {[%clk 0:03:38.7]} 21... Rfc8 {[%clk 0:03:36.4]} 22. f4 {[%clk
0:03:36.8]} 22... Na5 {[%clk 0:03:30.3]} 23. b3 {[%clk 0:03:30.4]} 23... Nb7
{[%clk 0:03:19.8]} 24. Rxc8+ {[%clk 0:03:16]} 24... Rxc8 {[%clk 0:03:17.7]} 25.
Kd2 {[%clk 0:02:52.6]} 25... Na5 {[%clk 0:03:03]} 26. Bb6 {[%clk 0:02:45.1]}
26... Nc6 {[%clk 0:03:01.1]} 27. Rc1 {[%clk 0:02:43.9]} 27... Kf8 {[%clk
0:02:57.6]} 28. Bc5+ {[%clk 0:02:42.6]} 28... Ke8 {[%clk 0:02:56.4]} 29. Bxb4
{[%clk 0:02:41.9]} 29... Kd7 {[%clk 0:02:51.8]} 30. Bc3 {[%clk 0:02:39.5]} 30...
Ra8 {[%clk 0:02:50.2]} 31. a4 {[%clk 0:02:38.1]} 31... d4 {[%clk 0:02:48.9]} 32.
Bb2 {[%clk 0:02:35.9]} 32... Na5 {[%clk 0:02:46.7]} 33. Kc2 {[%clk 0:02:23.1]}
33... Rc8+ {[%clk 0:02:39.2]} 34. Kd3 {[%clk 0:02:20.6]} 34... Rxc1 {[%clk
0:02:36.8]} 35. Bxc1 {[%clk 0:02:20.5]} 35... Nxb3 {[%clk 0:02:35.9]} 36. Bb2
{[%clk 0:02:16.7]} 36... Nc5+ {[%clk 0:02:34.3]} 37. Kxd4 {[%clk 0:02:08.9]}
37... Nxa4 {[%clk 0:02:29.1]} 38. g3 {[%clk 0:02:01.3]} 38... Kc6 {[%clk
0:02:25.6]} 39. Ba3 {[%clk 0:01:59.6]} 39... h5 {[%clk 0:02:23.8]} 40. Be7
{[%clk 0:01:56.3]} 40... Nb6 {[%clk 0:02:18.8]} 41. Ba3 {[%clk 0:01:55.3]} 41...
Nd5 {[%clk 0:02:15.3]} 42. Bc1 {[%clk 0:01:51]} 42... Nb4 {[%clk 0:02:12.2]} 43.
Bd2 {[%clk 0:01:49.6]} 43... Na6 {[%clk 0:02:08.5]} 44. Bc3 {[%clk 0:01:46.8]}
44... Kb5 {[%clk 0:02:07.6]} 45. Bd2 {[%clk 0:01:44]} 45... Nc5 {[%clk
0:02:02.8]} 46. Bc3 {[%clk 0:01:39.5]} 46... Na4 {[%clk 0:02:02]} 47. Bd2 {[%clk
0:01:37.5]} 47... Nb6 {[%clk 0:02:01.2]} 48. Bc1 {[%clk 0:01:34.9]} 48... Nc4
{[%clk 0:01:58.9]} 49. Kc3 {[%clk 0:01:28.9]} 49... Kc5 {[%clk 0:01:56.1]} 50.
Kd3 {[%clk 0:01:27.2]} 50... Kd5 {[%clk 0:01:47.1]} 51. h3 {[%clk 0:01:22.9]}
51... Kc5 {[%clk 0:01:36.2]} 52. g4 {[%clk 0:01:20.7]} 52... hxg4 {[%clk
0:01:32.5]} 53. hxg4 {[%clk 0:01:20.6]} 53... Kd5 {[%clk 0:01:30.6]} 54. g5
{[%clk 0:01:09.4]} 54... Kc5 {[%clk 0:01:24.7]} 55. Ke4 {[%clk 0:01:08.7]} 55...
Na5 {[%clk 0:01:19.9]} 56. Be3+ {[%clk 0:01:03.2]} 56... Kc4 {[%clk 0:01:18.6]}
57. Bb6 {[%clk 0:01:02.3]} 57... Nb3 {[%clk 0:01:16.8]} 58. Be3 {[%clk
0:01:01.5]} 58... Kc3 {[%clk 0:01:14]} 59. Bb6 {[%clk 0:00:58]} 59... Nd2+
{[%clk 0:01:11.9]} 60. Ke3 {[%clk 0:00:52.9]} 60... Nc4+ {[%clk 0:01:10.9]} 0-1

[Event "Live Chess"]
[Site "Chess.com"]
[Date "2024.06.02"]
[Round "-"]
[White "Crowded_House"]
[Black "StoreySniper"]
[Result "0-1"]
[WhiteElo "1666"]
[BlackElo "2524"]
[TimeControl "300"]
[EndTime "3:06:51 PDT"]
[Termination "StoreySniper won by resignation"]

1. d4 {[%clk 0:04:56.5]} 1... g6 {[%clk 0:04:59.7]} 2. Bg5 {[%clk 0:04:54.5]}
2... Bg7 {[%clk 0:04:59.3]} 3. c3 {[%clk 0:04:54]} 3... h6 {[%clk 0:04:56.4]} 4.
Bh4 {[%clk 0:04:52.6]} 4... Nf6 {[%clk 0:04:55]} 5. e3 {[%clk 0:04:50]} 5... d6
{[%clk 0:04:54.4]} 6. Bd3 {[%clk 0:04:47.5]} 6... c5 {[%clk 0:04:50.3]} 7. dxc5
{[%clk 0:04:44.4]} 7... dxc5 {[%clk 0:04:47.7]} 8. Bc2 {[%clk 0:04:43.4]} 8...
Qxd1+ {[%clk 0:04:44.4]} 9. Bxd1 {[%clk 0:04:42.7]} 9... Nc6 {[%clk 0:04:43]}
10. Nf3 {[%clk 0:04:38.1]} 10... g5 {[%clk 0:04:35.5]} 11. Bg3 {[%clk
0:04:35.1]} 11... Ne4 {[%clk 0:04:34.4]} 12. Nbd2 {[%clk 0:04:31.6]} 12... Nxg3
{[%clk 0:04:32.6]} 13. hxg3 {[%clk 0:04:30.1]} 13... Bf5 {[%clk 0:04:29]} 14.
O-O {[%clk 0:04:17.5]} 14... O-O-O {[%clk 0:04:26.7]} 15. Rc1 {[%clk 0:04:07.5]}
15... g4 {[%clk 0:04:21.3]} 16. Nh4 {[%clk 0:04:01.3]} 16... Bd3 {[%clk
0:04:13.7]} 17. Re1 {[%clk 0:03:58.5]} 17... h5 {[%clk 0:04:03.6]} 18. Nb3
{[%clk 0:03:52.7]} 18... b6 {[%clk 0:04:00.2]} 19. Be2 {[%clk 0:03:46.7]} 19...
e6 {[%clk 0:03:52.8]} 20. Bxd3 {[%clk 0:03:42.6]} 20... Rxd3 {[%clk 0:03:51.6]}
21. Rcd1 {[%clk 0:03:40.5]} 21... Rhd8 {[%clk 0:03:49.8]} 22. Rxd3 {[%clk
0:03:35]} 22... Rxd3 {[%clk 0:03:48.4]} 23. Kf1 {[%clk 0:03:21.5]} 23... c4
{[%clk 0:03:41.7]} 24. Na1 {[%clk 0:02:48.4]} 24... b5 {[%clk 0:03:23.3]} 25.
Ke2 {[%clk 0:02:46.6]} 25... b4 {[%clk 0:03:07.6]} 26. cxb4 {[%clk 0:02:24]}
26... Bxb2 {[%clk 0:03:03.5]} 27. Nc2 {[%clk 0:02:19.9]} 27... Bc3 {[%clk
0:02:53.9]} 28. Rd1 {[%clk 0:02:15.7]} 28... Rxd1 {[%clk 0:02:52.6]} 29. Kxd1
{[%clk 0:02:14.2]} 29... Bxb4 {[%clk 0:02:38.5]} 30. Nxb4 {[%clk 0:02:12.2]}
30... Nxb4 {[%clk 0:02:37.2]} 31. a3 {[%clk 0:02:08.8]} 31... Nd3 {[%clk
0:02:25.7]} 32. Ke2 {[%clk 0:02:03.7]} 32... Kc7 {[%clk 0:02:18.4]} 33. f3
{[%clk 0:02:03.1]} 33... Kc6 {[%clk 0:02:16]} 34. fxg4 {[%clk 0:02:02.1]} 34...
hxg4 {[%clk 0:02:14.6]} 35. Kd2 {[%clk 0:01:52.8]} 35... Kc5 {[%clk 0:02:11.4]}
36. Kc3 {[%clk 0:01:51.8]} 36... Nf2 {[%clk 0:02:01.9]} 0-1

[Event "Live Chess"]
[Site "Chess.com"]
[Date "2024.06.02"]
[Round "-"]
[White "Queensandpawns"]
[Black "resipsa6"]
[Result "1-0"]
[WhiteElo "2257"]
[BlackElo "2030"]
[TimeControl "300"]
[EndTime "3:06:58 PDT"]
[Termination "Queensandpawns won by checkmate"]

1. e4 {[%clk 0:04:59.2]} 1... e5 {[%clk 0:04:58.7]} 2. d4 {[%clk 0:04:58.5]}
2... exd4 {[%clk 0:04:57.8]} 3. c3 {[%clk 0:04:58.4]} 3... dxc3 {[%clk
0:04:56.9]} 4. Bc4 {[%clk 0:04:58.3]} 4... Nc6 {[%clk 0:04:52.5]} 5. Nf3 {[%clk
0:04:57.7]} 5... Na5 {[%clk 0:04:47.2]} 6. Bxf7+ {[%clk 0:04:51.6]} 6... Kxf7
{[%clk 0:04:43.7]} 7. Qd5+ {[%clk 0:04:51.2]} 7... Ke8 {[%clk 0:04:40.4]} 8.
Qxa5 {[%clk 0:04:45.2]} 8... c2 {[%clk 0:04:39.1]} 9. Nc3 {[%clk 0:04:43.2]}
9... b6 {[%clk 0:04:35.9]} 10. Qd5 {[%clk 0:04:41.5]} 10... Ba6 {[%clk
0:04:31.6]} 11. Bg5 {[%clk 0:04:37.8]} 11... Be7 {[%clk 0:04:29.5]} 12. Ne5
{[%clk 0:04:34.5]} 12... Nh6 {[%clk 0:04:04]} 13. Bxh6 {[%clk 0:04:32.6]} 13...
Rf8 {[%clk 0:04:01.9]} 14. Bxg7 {[%clk 0:04:28.7]} 14... Rf4 {[%clk 0:03:58.2]}
15. g3 {[%clk 0:04:21.9]} 15... c6 {[%clk 0:03:57.1]} 16. Qg8+ {[%clk 0:04:18]}
16... Rf8 {[%clk 0:03:55.3]} 17. Bxf8 {[%clk 0:04:16.3]} 17... Bxf8 {[%clk
0:03:54.3]} 18. Qf7# {[%clk 0:04:15]} 1-0